{"text_format":"3","workbook":"xlsx","n_sheets":7,"sheets":["Maanantai","Tiistai","Keskiviikko","Torstai","Perjantai","Lauantai","Sunnuntai"],"not_rendered":{"defined_names":24},"read":"whole","date_system":"1900"}

{"sheet":"Maanantai","index":0,"n_rows":10,"n_cols":13,"rows_kept":10,"merged":[[1,1,2,1],[1,2,1,10],[1,11,1,12],[2,2,2,10],[2,11,2,12]]}
[null,"VUOROAIKATAULU"]
[null,"MAANANTAI","Alkamispäivä: ",{"$nulls":8},"PÄIVÄMÄÄRÄ"]
[null,null,"Osaston nimi: ",{"$nulls":8},"OSASTO"]
[null,"Työntekijän nimi","7:00","8:00","9:00","10:00","11:00","12:00","13:00","14:00","15:00","Sairaana?","YHTEENSÄ"]
[null,"Karita H","esimies","esimies","esimies","esimies","esimies","esimies","esimies","esimies","esimies",null,{"$f":"IFERROR(COUNTIF(Maanantai[[#This Row],[7:00]:[15:00]],\"*\"),\"\")","v":9}]
[null,"Tommy S",null,"kassanhoitaja","kassanhoitaja","kassanhoitaja","kassanhoitaja",{"$nulls":5},{"$f":"IFERROR(COUNTIF(Maanantai[[#This Row],[7:00]:[15:00]],\"*\"),\"\")","v":4}]
[null,"Jaakko I",null,"vastaanotto","vastaanotto","vastaanotto","vastaanotto ","vastaanotto","vastaanotto","vastaanotto",null,null,{"$f":"IFERROR(COUNTIF(Maanantai[[#This Row],[7:00]:[15:00]],\"*\"),\"\")","v":7}]
[null,"Jari K",null,"vastaanotto","vastaanotto","vastaanotto","vastaanotto ","vastaanotto","vastaanotto","vastaanotto",null,null,{"$f":"IFERROR(COUNTIF(Maanantai[[#This Row],[7:00]:[15:00]],\"*\"),\"\")","v":7}]
[null,"Stefan L",{"$nulls":10},{"$f":"IFERROR(COUNTIF(Maanantai[[#This Row],[7:00]:[15:00]],\"*\"),\"\")","v":0}]
[null,"Taina S",{"$nulls":5},"kassanhoitaja","kassanhoitaja","kassanhoitaja","kassanhoitaja",null,{"$f":"IFERROR(COUNTIF(Maanantai[[#This Row],[7:00]:[15:00]],\"*\"),\"\")","v":4}]

{"sheet":"Tiistai","index":1,"n_rows":10,"n_cols":13,"rows_kept":10,"merged":[[1,1,2,1],[1,2,1,10],[1,11,1,12],[2,2,2,10],[2,11,2,12]]}
[null,{"$f":"VUOROAIKATAULU_Otsikko","v":"VUOROAIKATAULU"}]
[null,"TIISTAI","Alkamispäivä: ",{"$nulls":8},{"$f":"PÄIVÄMÄÄRÄ","v":"PÄIVÄMÄÄRÄ"}]
[null,null,"Osaston nimi: ",{"$nulls":8},{"$f":"OSASTO","v":"OSASTO"}]
[null,"Työntekijän nimi","7:00","8:00","9:00","10:00","11:00","12:00","13:00","14:00","15:00","Sairaana?","YHTEENSÄ"]
[null,"Karita H","esimies","esimies","esimies","esimies","esimies","esimies","esimies","esimies","esimies",null,{"$f":"IFERROR(COUNTIF(Tiistai[[#This Row],[7:00]:[15:00]],\"*\"),\"\")","v":9}]
[null,"Tommy S",null,"kassanhoitaja","kassanhoitaja","kassanhoitaja","kassanhoitaja",{"$nulls":5},{"$f":"IFERROR(COUNTIF(Tiistai[[#This Row],[7:00]:[15:00]],\"*\"),\"\")","v":4}]
[null,"Jaakko I",null,"vastaanotto","vastaanotto","vastaanotto","vastaanotto ","vastaanotto","vastaanotto","vastaanotto",null,null,{"$f":"IFERROR(COUNTIF(Tiistai[[#This Row],[7:00]:[15:00]],\"*\"),\"\")","v":7}]
[null,"Jari K",null,"vastaanotto","vastaanotto","vastaanotto","vastaanotto ","vastaanotto","vastaanotto","vastaanotto",null,null,{"$f":"IFERROR(COUNTIF(Tiistai[[#This Row],[7:00]:[15:00]],\"*\"),\"\")","v":7}]
[null,"Stefan L",{"$nulls":9},"Sairaana",{"$f":"IFERROR(COUNTIF(Tiistai[[#This Row],[7:00]:[15:00]],\"*\"),\"\")","v":0}]
[null,"Taina S",{"$nulls":5},"kassanhoitaja","kassanhoitaja","kassanhoitaja","kassanhoitaja",null,{"$f":"IFERROR(COUNTIF(Tiistai[[#This Row],[7:00]:[15:00]],\"*\"),\"\")","v":4}]

{"sheet":"Keskiviikko","index":2,"n_rows":10,"n_cols":13,"rows_kept":10,"merged":[[1,1,2,1],[1,2,1,10],[1,11,1,12],[2,2,2,10],[2,11,2,12]]}
[null,{"$f":"VUOROAIKATAULU_Otsikko","v":"VUOROAIKATAULU"}]
[null,"KESKIVIIKKO","Alkamispäivä: ",{"$nulls":8},{"$f":"PÄIVÄMÄÄRÄ","v":"PÄIVÄMÄÄRÄ"}]
[null,null,"Osaston nimi: ",{"$nulls":8},{"$f":"OSASTO","v":"OSASTO"}]
[null,"Työntekijän nimi","7:00","8:00","9:00","10:00","11:00","12:00","13:00","14:00","15:00","Sairaana?","YHTEENSÄ"]
[null,"Karita H","esimies","esimies","esimies","esimies","esimies","esimies","esimies","esimies","esimies",null,{"$f":"IFERROR(COUNTIF(Keskiviikko[[#This Row],[7:00]:[15:00]],\"*\"),\"\")","v":9}]
[null,"Tommy S",null,"kassanhoitaja","kassanhoitaja","kassanhoitaja","kassanhoitaja",{"$nulls":5},{"$f":"IFERROR(COUNTIF(Keskiviikko[[#This Row],[7:00]:[15:00]],\"*\"),\"\")","v":4}]
[null,"Jaakko I",null,"vastaanotto","vastaanotto","vastaanotto","vastaanotto ","vastaanotto","vastaanotto","vastaanotto",null,null,{"$f":"IFERROR(COUNTIF(Keskiviikko[[#This Row],[7:00]:[15:00]],\"*\"),\"\")","v":7}]
[null,"Jari K",null,"vastaanotto","vastaanotto","vastaanotto","vastaanotto ","vastaanotto","vastaanotto","vastaanotto",null,null,{"$f":"IFERROR(COUNTIF(Keskiviikko[[#This Row],[7:00]:[15:00]],\"*\"),\"\")","v":7}]
[null,"Stefan L",{"$nulls":9},"Sairaana",{"$f":"IFERROR(COUNTIF(Keskiviikko[[#This Row],[7:00]:[15:00]],\"*\"),\"\")","v":0}]
[null,"Taina S",{"$nulls":5},"kassanhoitaja","kassanhoitaja","kassanhoitaja","kassanhoitaja",null,{"$f":"IFERROR(COUNTIF(Keskiviikko[[#This Row],[7:00]:[15:00]],\"*\"),\"\")","v":4}]

{"sheet":"Torstai","index":3,"n_rows":10,"n_cols":13,"rows_kept":10,"merged":[[1,1,2,1],[1,2,1,10],[1,11,1,12],[2,2,2,10],[2,11,2,12]]}
[null,{"$f":"VUOROAIKATAULU_Otsikko","v":"VUOROAIKATAULU"}]
[null,"TORSTAI","Alkamispäivä: ",{"$nulls":8},{"$f":"PÄIVÄMÄÄRÄ","v":"PÄIVÄMÄÄRÄ"}]
[null,null,"Osaston nimi: ",{"$nulls":8},{"$f":"OSASTO","v":"OSASTO"}]
[null,"Työntekijän nimi","7:00","8:00","9:00","10:00","11:00","12:00","13:00","14:00","15:00","Sairaana?","YHTEENSÄ"]
[null,"Karita H","esimies","esimies","esimies","esimies","esimies","esimies","esimies","esimies","esimies",null,{"$f":"IFERROR(COUNTIF(Torstai[[#This Row],[7:00]:[15:00]],\"*\"),\"\")","v":9}]
[null,"Tommy S",null,"kassanhoitaja","kassanhoitaja","kassanhoitaja","kassanhoitaja",{"$nulls":5},{"$f":"IFERROR(COUNTIF(Torstai[[#This Row],[7:00]:[15:00]],\"*\"),\"\")","v":4}]
[null,"Jaakko I",null,"vastaanotto","vastaanotto","vastaanotto","vastaanotto ","vastaanotto","vastaanotto","vastaanotto",null,null,{"$f":"IFERROR(COUNTIF(Torstai[[#This Row],[7:00]:[15:00]],\"*\"),\"\")","v":7}]
[null,"Jari K",null,"vastaanotto","vastaanotto","vastaanotto","vastaanotto ","vastaanotto","vastaanotto","vastaanotto",null,null,{"$f":"IFERROR(COUNTIF(Torstai[[#This Row],[7:00]:[15:00]],\"*\"),\"\")","v":7}]
[null,"Stefan L",{"$nulls":9},"Sairaana",{"$f":"IFERROR(COUNTIF(Torstai[[#This Row],[7:00]:[15:00]],\"*\"),\"\")","v":0}]
[null,"Taina S",{"$nulls":5},"kassanhoitaja","kassanhoitaja","kassanhoitaja","kassanhoitaja",null,{"$f":"IFERROR(COUNTIF(Torstai[[#This Row],[7:00]:[15:00]],\"*\"),\"\")","v":4}]

{"sheet":"Perjantai","index":4,"n_rows":10,"n_cols":13,"rows_kept":10,"merged":[[1,1,2,1],[1,2,1,10],[1,11,1,12],[2,2,2,10],[2,11,2,12]]}
[null,{"$f":"VUOROAIKATAULU_Otsikko","v":"VUOROAIKATAULU"}]
[null,"PERJANTAI","Alkamispäivä: ",{"$nulls":8},{"$f":"PÄIVÄMÄÄRÄ","v":"PÄIVÄMÄÄRÄ"}]
[null,null,"Osaston nimi: ",{"$nulls":8},{"$f":"OSASTO","v":"OSASTO"}]
[null,"Työntekijän nimi","7:00","8:00","9:00","10:00","11:00","12:00","13:00","14:00","15:00","Sairaana?","YHTEENSÄ"]
[null,"Karita H","esimies","esimies","esimies","esimies","esimies","esimies","esimies","esimies","esimies",null,{"$f":"IFERROR(COUNTIF(Perjantai[[#This Row],[7:00]:[15:00]],\"*\"),\"\")","v":9}]
[null,"Tommy S",null,"kassanhoitaja","kassanhoitaja","kassanhoitaja","kassanhoitaja",{"$nulls":5},{"$f":"IFERROR(COUNTIF(Perjantai[[#This Row],[7:00]:[15:00]],\"*\"),\"\")","v":4}]
[null,"Jaakko I",null,"vastaanotto","vastaanotto","vastaanotto","vastaanotto ","vastaanotto","vastaanotto","vastaanotto",null,null,{"$f":"IFERROR(COUNTIF(Perjantai[[#This Row],[7:00]:[15:00]],\"*\"),\"\")","v":7}]
[null,"Jari K",null,"vastaanotto","vastaanotto","vastaanotto","vastaanotto ","vastaanotto","vastaanotto","vastaanotto",null,null,{"$f":"IFERROR(COUNTIF(Perjantai[[#This Row],[7:00]:[15:00]],\"*\"),\"\")","v":7}]
[null,"Stefan L",{"$nulls":9},"Sairaana",{"$f":"IFERROR(COUNTIF(Perjantai[[#This Row],[7:00]:[15:00]],\"*\"),\"\")","v":0}]
[null,"Taina S",{"$nulls":5},"kassanhoitaja","kassanhoitaja","kassanhoitaja","kassanhoitaja",null,{"$f":"IFERROR(COUNTIF(Perjantai[[#This Row],[7:00]:[15:00]],\"*\"),\"\")","v":4}]

{"sheet":"Lauantai","index":5,"n_rows":10,"n_cols":13,"rows_kept":10,"merged":[[1,1,2,1],[1,2,1,10],[1,11,1,12],[2,2,2,10],[2,11,2,12]]}
[null,{"$f":"VUOROAIKATAULU_Otsikko","v":"VUOROAIKATAULU"}]
[null,"LAUANTAI","Alkamispäivä: ",{"$nulls":8},{"$f":"PÄIVÄMÄÄRÄ","v":"PÄIVÄMÄÄRÄ"}]
[null,null,"Osaston nimi: ",{"$nulls":8},{"$f":"OSASTO","v":"OSASTO"}]
[null,"Työntekijän nimi","7:00","8:00","9:00","10:00","11:00","12:00","13:00","14:00","15:00","Sairaana?","YHTEENSÄ"]
[null,"Karita H","esimies","esimies","esimies","esimies","esimies","esimies","esimies","esimies","esimies",null,{"$f":"IFERROR(COUNTIF(Lauantai[[#This Row],[7:00]:[15:00]],\"*\"),\"\")","v":9}]
[null,"Tommy S",null,"kassanhoitaja","kassanhoitaja","kassanhoitaja","kassanhoitaja",{"$nulls":5},{"$f":"IFERROR(COUNTIF(Lauantai[[#This Row],[7:00]:[15:00]],\"*\"),\"\")","v":4}]
[null,"Jaakko I",null,"vastaanotto","vastaanotto","vastaanotto","vastaanotto ","vastaanotto","vastaanotto","vastaanotto",null,null,{"$f":"IFERROR(COUNTIF(Lauantai[[#This Row],[7:00]:[15:00]],\"*\"),\"\")","v":7}]
[null,"Jari K",null,"vastaanotto","vastaanotto","vastaanotto","vastaanotto ","vastaanotto","vastaanotto","vastaanotto",null,null,{"$f":"IFERROR(COUNTIF(Lauantai[[#This Row],[7:00]:[15:00]],\"*\"),\"\")","v":7}]
[null,"Stefan L",{"$nulls":9},"Sairaana",{"$f":"IFERROR(COUNTIF(Lauantai[[#This Row],[7:00]:[15:00]],\"*\"),\"\")","v":0}]
[null,"Taina S",{"$nulls":5},"kassanhoitaja","kassanhoitaja","kassanhoitaja","kassanhoitaja",null,{"$f":"IFERROR(COUNTIF(Lauantai[[#This Row],[7:00]:[15:00]],\"*\"),\"\")","v":4}]

{"sheet":"Sunnuntai","index":6,"n_rows":10,"n_cols":13,"rows_kept":10,"merged":[[1,1,2,1],[1,2,1,10],[1,11,1,12],[2,2,2,10],[2,11,2,12]]}
[null,{"$f":"VUOROAIKATAULU_Otsikko","v":"VUOROAIKATAULU"}]
[null,"SUNNUNTAI","Alkamispäivä: ",{"$nulls":8},{"$f":"PÄIVÄMÄÄRÄ","v":"PÄIVÄMÄÄRÄ"}]
[null,null,"Osaston nimi: ",{"$nulls":8},{"$f":"OSASTO","v":"OSASTO"}]
[null,"Työntekijän nimi","7:00","8:00","9:00","10:00","11:00","12:00","13:00","14:00","15:00","Sairaana?","YHTEENSÄ"]
[null,"Karita H","esimies","esimies","esimies","esimies","esimies","esimies","esimies","esimies","esimies",null,{"$f":"IFERROR(COUNTIF(Sunnuntai[[#This Row],[7:00]:[15:00]],\"*\"),\"\")","v":9}]
[null,"Tommy S",null,"kassanhoitaja","kassanhoitaja","kassanhoitaja","kassanhoitaja",{"$nulls":5},{"$f":"IFERROR(COUNTIF(Sunnuntai[[#This Row],[7:00]:[15:00]],\"*\"),\"\")","v":4}]
[null,"Jaakko I",null,"vastaanotto","vastaanotto","vastaanotto","vastaanotto ","vastaanotto","vastaanotto","vastaanotto",null,null,{"$f":"IFERROR(COUNTIF(Sunnuntai[[#This Row],[7:00]:[15:00]],\"*\"),\"\")","v":7}]
[null,"Jari K",null,"vastaanotto","vastaanotto","vastaanotto","vastaanotto ","vastaanotto","vastaanotto","vastaanotto",null,null,{"$f":"IFERROR(COUNTIF(Sunnuntai[[#This Row],[7:00]:[15:00]],\"*\"),\"\")","v":7}]
[null,"Stefan L",{"$nulls":9},"Sairaana",{"$f":"IFERROR(COUNTIF(Sunnuntai[[#This Row],[7:00]:[15:00]],\"*\"),\"\")","v":0}]
[null,"Taina S",{"$nulls":5},"kassanhoitaja","kassanhoitaja","kassanhoitaja","kassanhoitaja",null,{"$f":"IFERROR(COUNTIF(Sunnuntai[[#This Row],[7:00]:[15:00]],\"*\"),\"\")","v":4}]